Cogmind - Beta 15 @@@ ROGUE MODE // 2025.07.24 @ 15:27:41 Player: Waste Result: Destroyed by Shrapnel Trap Performance ------------- Evolutions (0) 0 Regions Visited (2) 400 Robots Destroyed (28) 140 Value Destroyed (765) 765 Prototype IDs (2) 40 Alien Tech Used (0) 0 Bonus (0) 0 TOTAL SCORE: 1345 Bonus ------- None Cogmind --------- Core Integrity 0/250 Matter 270/300 Energy 246/250 System Corruption 0% Temperature Cool (2) Movement Walking (260) Ox2 Location -10/Subcaves Parts ------- > --- POWER (1) -------- Ion Engine > --- PROPULSION (2) --- Aluminum Leg Aluminum Leg > --- UTILITY (2) ------ High-capacity Storage Unit Targeting Computer > --- WEAPON (2) ------- Subdweller Laser Subdweller Laser > --- INVENTORY (20) --- Ion Engine Light Treads Light Treads Spiked Treads Aluminum Leg High-capacity Matter Pod (200) Scrap Shield Particle Gun Particle Gun Subdweller Laser Subdweller Laser Heavy Assault Rifle Heavy Assault Rifle Subdweller Machine Gun Makeshift Shrapnel Gun Grenade Launcher Grenade Launcher Peak State ------------ > --- POWER ------------ Ion Engine > --- PROPULSION ------- Aluminum Leg Aluminum Leg > --- UTILITY ---------- High-capacity Storage Unit Targeting Computer > --- WEAPON ----------- Subdweller Laser Subdweller Beam Cannon > --- INVENTORY -------- Ion Engine Light Treads Light Treads Spiked Treads Aluminum Leg Aluminum Leg Aluminum Leg High-capacity Matter Pod EM Pulse Gun Particle Gun Particle Gun Light Assault Rifle Light Assault Rifle Heavy Assault Rifle Heavy Assault Rifle Heavy Assault Rifle Heavy Assault Rifle Makeshift Shrapnel Gun Grenade Launcher Grenade Launcher [Rating: 12] Favorites ----------- Power Ion Engine Engine Ion Engine Propulsion Aluminum Leg Leg Aluminum Leg Utility Targeting Computer Storage High-capacity Storage Unit Processor Targeting Computer Weapon Subdweller Laser Energy Gun Subdweller Laser Energy Cannon Subdweller Beam Cannon Ballistic Gun Assault Rifle Build | -11 -10 -10 ------- Run | Yrd Mat Sub Slots Evolved . | . . . Power . | . . . Propulsion . | . . . Utility . | . . . Weapon . | . . . Parts Attached 19 | . 11 8 Power 2 | . 2 . Engine 2 | . 2 . Core . | . . . Reactor . | . . . Propulsion 4 | . 3 1 Treads . | . . . Leg 4 | . 3 1 Wheel . | . . . Hover . | . . . Flight . | . . . Utility 2 | . 2 . Device . | . . . Storage 1 | . 1 . Processor 1 | . 1 . Hackware . | . . . Protection . | . . . Artifact . | . . . Weapon 11 | . 4 7 Energy Gun 6 | . 1 5 Energy Cannon 1 | . . 1 Ballistic Gun 4 | . 3 1 Ballistic Cannon . | . . . Launcher . | . . . Special Weapon . | . . . Impact Weapon . | . . . Slashing Weapon . | . . . Piercing Weapon . | . . . Special Melee Weapon . | . . . Unidentified Prototypes . | . . . Parts Lost 5 | . 3 2 Power 1 | . 1 . Propulsion 3 | . 1 2 Utility . | . . . Weapon 1 | . 1 . Highest Loss Streak 1 | . 1 1 To Critical Strikes . | . . . Average Backups 16 | . 12 18 Power 1 | . 1 1 Propulsion 5 | . 5 5 Utility 1 | . 1 1 Weapon 8 | . 3 10 Tool/Special . | . . . Unused Backups 25 | . 3 22 Power 1 | . . 1 Propulsion 7 | . 1 6 Utility 5 | . 1 4 Weapon 12 | . 1 11 Tool/Special . | . . . Average Slot Usage (%) 99 | . 98 99 Engine 13 | . 13 14 Leg 27 | . 27 27 Storage 14 | . 14 14 Processor 13 | . 13 14 Energy Gun 13 | . 3 17 Energy Cannon 3 | . . 4 Ballistic Gun 10 | . 24 6 Peak Build Rating 12 | . 11 12 Average Rating 11 | . 8 11 On Entrance 7 | 6 6 11 Naked Turns . | . . . Heaviest Build 57 | 14 51 57 Greatest Support 20 | 20 20 20 Greatest Overweight (x) 2 | . 2 2 Average Overweight (x) 1 | . 1 2 Largest Inventory Capacity 20 | . 20 20 Average Capacity 19 | . 19 20 Most Carried 20 | . 20 20 Average Carried 17 | . 12 19 Final Capacity 20 | 8 20 20 Final Carried 20 | 6 20 18 Class Distribution -------------------- 100% | Mutant Dominant Class ---------------- Mutant | -10/Materials Mutant | -10/Subcaves Resources | -11 -10 -10 ----------- Run | Yrd Mat Sub Matter Collected 1049 | 190 679 180 Remotely . | . . . Salvage Created 1051 | . 688 363 Parts 68 | . 44 24 Haulers Intercepted 2 | . 2 . Recyclers Shooed 3 | . 3 . Parts Field Recycled . | . . . Retrieved Matter . | . . . Parts Self-Destructed 10 | . . 10 Prevented . | . . . Kills | -11 -10 -10 ------- Run | Yrd Mat Sub Combat Hostiles Destroyed 20 | . 12 8 Guns 18 | . 12 6 Cannons 2 | . . 2 Classes Destroyed 8 | . 7 1 Builder 1 | . 1 . Tunneler 1 | . 1 . Hauler 2 | . 2 . Recycler 1 | . 1 . Watcher 3 | . 3 . Swarmer 3 | . 3 . Grunt 9 | . 9 . Subdweller 8 | . . 8 Best Kill Streak 4 | . 4 2 Combat Bots Only 4 | . 4 2 Max Kills in Single Turn 1 | . 1 1 Gunslinging . | . . . Exploded . | . . . Melee . | . . . Uniques/NPCs Destroyed . | . . . Combat | -11 -10 -10 -------- Run | Yrd Mat Sub Hostile Shots Fired 98 | . 63 35 Missed 24 | . 11 13 Hits 74 | . 52 22 Projectile 74 | . 52 22 Critical Strikes 1 | . . 1 Damage Taken 1178 | . 611 567 Core 266 | . 117 149 Absorbed by Shields . | . . . Core Remaining (%) 100 | 100 . . Volleys Fired 134 | . 61 73 Largest 2 | . 2 2 Hottest 140 | . 85 140 Shots Fired 242 | . 111 131 Gun 219 | . 111 108 Cannon 23 | . . 23 Launcher . | . . . Special . | . . . Kinetic 122 | . 98 24 Thermal 120 | . 13 107 Explosive . | . . . Electromagnetic . | . . . Robot Hit Streak 27 | . 23 27 Robot Miss Streak 4 | . 4 1 Penetration Max . | . . . Secondary Targets 1 | . . 1 Max Gunslinging Chain 1 | . . 1 Shots Hit Robots 114 | . 71 43 Core Hits 46 | . 31 15 Critical Kills . | . . . Critical Parts Destroyed . | . . . Critical Strikes . | . . . Melee Attacks . | . . . Impact . | . . . Slashing . | . . . Piercing . | . . . Sneak Attacks . | . . . Combat Hostiles . | . . . Follow-up Attacks . | . . . Damage Inflicted 1875 | . 1017 858 Guns 1740 | . 1017 723 Cannons 135 | . . 135 Explosions . | . . . Melee . | . . . Ramming . | . . . Kinetic 1089 | . 845 244 Thermal 786 | . 172 614 Explosive . | . . . Electromagnetic . | . . . Impact . | . . . Slashing . | . . . Piercing . | . . . Highest Corruption . | . . . Average Corruption . | . . . Corruption Purged . | . . . Corruption Blocked . | . . . Overload Shots . | . . . Overflow Damage . | . . . Projectiles . | . . . Explosions . | . . . Melee . | . . . Knockbacks . | . . . Impact . | . . . Kinetic . | . . . Secondary . | . . . Self-Inflicted Damage . | . . . Shots . | . . . Rammed . | . . . Targets Rammed 2 | . 2 . Kicked 2 | . 2 . Crushed . | . . . Highest Temperature 168 | . 168 63 Average Temperature 33 | . 48 21 Received Heat Transfer 429 | . 303 126 Siege Activations . | . . . Martial Activations . | . . . Shielding Activations . | . . . Robots Disrupted . | . . . Combat Hostiles . | . . . Robots Corrupted . | . . . Combat Hostiles . | . . . Parts Fried . | . . . Impact Corruptions . | . . . Robots Melted . | . . . Combat Hostiles . | . . . Parts Melted 5 | . 1 4 Heat Transferred 1167 | . 407 760 Parts Sabotaged . | . . . Parts Stolen . | . . . Parts Stripped . | . . . Power Chain Reactions . | . . . Alert | -11 -10 -10 ------- Run | Yrd Mat Sub Maximum Alert Level . | . . . Low Security (%) 100 | . 100 . Level 1 . | . . . Level 2 . | . . . Level 3 . | . . . Level 4 . | . . . Level 5 . | . . . High Security . | . . . Max Security . | . . . Peak Influence 117 | . 117 . Initial . | . . . Average 29 | . 29 . Influence Increases 394 | . 394 . Destroy 0b10 Robot/C 240 | . 240 . Destroy 0b10 Robot/NC 40 | . 40 . Destroy Leader 80 | . 80 . Successful Hack 17 | . 17 . Destroy Structure 2 | . 2 . Lose Combat Pursuer 15 | . 15 . Influence Decreases 394 | . 394 . Time Decay 370 | . 370 . Lost Part 24 | . 24 . Squads Dispatched 3 | . 3 . Investigation 2 | . 2 . Extermination . | . . . Reinforcement 1 | . 1 . Assault . | . . . Garrison . | . . . Intercept . | . . . Searches Triggered . | . . . Construction Impeded . | . . . Haulers Reinforced . | . . . Active Scanning Responses . | . . . Cargo Convoy Interrupts . | . . . Stealth | -11 -10 -10 --------- Run | Yrd Mat Sub Distress Signals 4 | . 4 . Communications Jammed . | . . . Distress Signals . | . . . Times Spotted 27 | . 18 9 Peak Tracking Total 4 | . 4 2 Tactical Retreats 1 | . 1 . Traps | -11 -10 -10 ------- Run | Yrd Mat Sub Traps Triggered 4 | . 2 2 Indirectly . | . . . Trap Hack Attempts . | . . . Triggered . | . . . Disarmed . | . . . Reprogrammed . | . . . Reused . | . . . Traps Extracted . | . . . Installed . | . . . Triggered . | . . . Machines | -11 -10 -10 ---------- Run | Yrd Mat Sub Machines Disabled . | . . . Max in Single Turn . | . . . Machines Repaired . | . . . Machines Dismantled . | . . . Machines Sabotaged . | . . . Overloaded Fab Kills . | . . . Hacking | -11 -10 -10 --------- Run | Yrd Mat Sub Machines Accessed 4 | . 3 1 Terminals 3 | . 3 . Fabricators . | . . . Repair Stations . | . . . Recycling Units . | . . . Scanalyzers . | . . . Garrison Access . | . . . Total Hacks 12 | . 8 4 Successful 8 | . 4 4 Failed 3 | . 3 . Catastrophic . | . . . Database Lockouts 1 | . 1 . Manual 10 | . 10 . Terminals 8 | . 8 . Fabricators . | . . . Repair Stations . | . . . Recycling Units . | . . . Scanalyzers . | . . . Garrison Access . | . . . Terminal Hacks 8 | . 4 4 Record 4 | . . 4 Robot Analysis 2 | . 2 . Prototype ID Bank 1 | . 1 . Locate Traps 1 | . 1 . Fabricator Hacks . | . . . Repair Station Hacks . | . . . Recycling Unit Hacks . | . . . Scanalyzer . | . . . Garrison Access Hacks . | . . . Unauthorized Hacks . | . . . Terminals . | . . . Fabricators . | . . . Repair Stations . | . . . Recycling Units . | . . . Scanalyzers . | . . . Garrison Access . | . . . Data Cores Recovered . | . . . Used . | . . . Hacking Detections 1 | . 1 . Full Trace Events . | . . . Feedback Events . | . . . Feedback Blocked . | . . . Robot Schematics Acquired . | . . . Robots Built . | . . . Authchips . | . . . Time . | . . . Total Robot Build Rating . | . . . Part Schematics Acquired . | . . . Parts Built . | . . . Authchips . | . . . Time . | . . . Total Part Build Rating . | . . . Parts Repaired . | . . . Time . | . . . Parts Recycled . | . . . Recycled Matter . | . . . Retrieved Matter . | . . . Retrieved Components . | . . . Parts Scanalyzed . | . . . Part Schematics Acquired . | . . . Parts Damaged . | . . . Bothacking | -11 -10 -10 ------------ Run | Yrd Mat Sub Used RIF Installer . | . . . Robots Hacked . | . . . Non-combat . | . . . Combat . | . . . Robot Hacks Applied . | . . . Relay Couplers Released . | . . . Fabnet Peak Effective % . | . . . Robots Rewired . | . . . Allies Hacked . | . . . Hacks Repelled . | . . . Allies | -11 -10 -10 -------- Run | Yrd Mat Sub Total Allies . | . . . Largest Group . | . . . Highest-Rated Group . | . . . Highest-Rated Ally . | . . . Total Orders . | . . . Ally Attacks . | . . . Total Damage . | . . . Kills . | . . . Allies Corrupted . | . . . Allies Melted . | . . . Intel | -11 -10 -10 ------- Run | Yrd Mat Sub Active Infowar (turns) . | . . . Robot Analysis Total 2 | . 2 . Derelict Logs Recovered 1 | . . 1 Drone Launches . | . . . Drone Recoveries . | . . . Exploration | -11 -10 -10 ------------- Run | Yrd Mat Sub Turns Passed 5563 | . 1366 4197 Spaces Moved 1958 | 1 452 1505 Core . | . . . Treads . | . . . Legs 1958 | 1 452 1505 Wheels . | . . . Hover . | . . . Flight . | . . . Fastest Speed 120 | 120 120 260 Average Speed 258 | 120 252 260 Slowest Speed 260 | 120 260 260 Overloaded Moves . | . . . Propulsion Burnouts . | . . . Robots Hopped . | . . . Potential Cave-ins . | . . . Cave-ins Triggered . | . . . Exploration Rate (%) 58 | 2 86 86 Regions Visited 2 Branch Regions 1 Pre-discovered Areas 1 | . . 1 Known Exits Taken . | . . . Unknown Exits Taken 2 | 1 1 . Scrap Searched 3 | . . 3 Spaces Dug . | . . . Terrain Destroyed 2 | . . 2 Melee . | . . . Projectile 2 | . . 2 AOE . | . . . Terrain Rammed . | . . . Walls Destroyed . | . . . Machines Disabled . | . . . Actions | -11 -10 -10 --------- Run | Yrd Mat Sub Total 2218 | . 559 1659 Wait 65 | . 20 45 Move 1956 | . 451 1505 Hop . | . . . Pick Up 25 | . 13 12 Fast Attach 1 | . 1 . Attach 5 | . 3 2 Detach . | . . . Swap 15 | . 7 8 Drop 15 | . 1 14 Fire 134 | . 61 73 Melee . | . . . Ram . | . . . Kick 2 | . 2 . Crush . | . . . Escape Stasis . | . . . Rewire . | . . . Trap . | . . . Miscellaneous . | . . . Route ------- -11/Scrapyard -10/Materials (discovered 5 exits: [*Mat x2] / [*Min x2] / *Sub) -10/Subcaves (discovered 2 exits: [*Mat x2]) History --------- Turn | Location | Event 1 | -11/Scrapyard | Discovered new exit (range 0) 1 | -11/Scrapyard | Entered Materials 102 | -10/Materials | Central database locked down 285 | -10/Materials | Discovered new exit (range 15) 301 | -10/Materials | Build established: Mutant 559 | -10/Materials | Discovered new exit (range 16) 782 | -10/Materials | Discovered new exit (range 9) 1335 | -10/Materials | Discovered new exit (range 13) 1338 | -10/Materials | Discovered new exit (range 7) 1367 | -10/Materials | Entered Subcaves 1568 | -10/Subcaves | Discovered new exit (range 15) 1574 | -10/Subcaves | Shifting Twisted Machinery released Sub. Laser 1580 | -10/Subcaves | Shifting Twisted Machinery released Spk. Treads 1809 | -10/Subcaves | Discovered new exit (range 8) 2353 | -10/Subcaves | Visited Clippyterm 2361 | -10/Subcaves | Learned Factory fabricator intel 2361 | -10/Subcaves | Learned Factory garrison access intel 2598 | -10/Subcaves | Shifting Twisted Machinery released Sub. Laser 2611 | -10/Subcaves | Shifting Twisted Machinery released Scrap Shield 3540 | -10/Subcaves | Shifting Twisted Machinery released Mak. Leg 3630 | -10/Subcaves | Core integrity fell below 50% 3977 | -10/Subcaves | Shifting Twisted Machinery released Mak. Leg 4767 | -10/Subcaves | Core integrity fell below 20% 4914 | -10/Subcaves | A swath of the cavern ceiling suddenly collapsed 5564 | -10/Subcaves | Destroyed by Shrapnel Trap Last Messages --------------- 04649_ Aluminum Leg destroyed. 04650_ Sub. Laser shoots sparks and powers down. 04656_ Subatomizers dissect the Sub. Optics. 04664_ Destroyed Scrap Shield. 04667_ Sub. Monowheel melted. 04667_ Sub. Power Source melted. 04667_ 35-LPS(R) destroyed. 04669_ Subatomizers dissect the Sub. Optics, destroying it. 04677_ Acquired 26 matter. 04683_ Acquired 9 matter. 04696_ Subatomizers dissect the Sub. Power Source. 04759_ Subatomizers dissect the Disposable Heat Sink. A swath of the cavern ceiling suddenly collapses. 04969_ Sub. Machine Gun shoots sparks and powers down. 05116_ Subatomizers dissect the Sub. Monowheel. 05558_ Triggered Piercing Trap. 05558_ Spikes shoot up from the floor. 05558_ Critical hit (Impale). 05564_ Triggered Shrapnel Trap. 05564_ An expanding cloud of shrapnel blasts out in all directions. Map ----- +----------------------------------------------------+ | ?????????# ##????????# "##??????????? | | ?????????## #?????????# ""#??????????? | | ??????????# #????#########= "## " #??????????? | | ?????????## ##???# #?##=""""## #??????????? | | ????????## ##??# #?#! ###### ##??????????? | | ????????# ##?# ## #???# #???????????? | | ????????#### ### ## ???# ##??????????? | | ???????????## ## ## ???## #??????????? | | ????????????## ### ##???# #??????????? | | ?????????????## #?####??## #??????????? | | ??????????????## #### #?## #??????????? | | ?????########## ## ### #??????????? | | ???### ## # ## #??????????? | | ???# ## #??????????? | | ???## ### #### ### #??????????? | | ???## ######?######?## #### #??????????? | | ???# # ##?## ##??## #??# #??????????? | | ???# #?# #???## ##?? #??????????? | | ???# ### #????### #??? #??????????? | | ???### #???????# #???# #??????????? | | ????# #?????? ##???## #??????????? | | ????## #### #????? #####??###??????????? | | #????# ##???# ##???? ## ##??????????????? | | ###??###?##### ###??####? ###????????????? | | ######## # ######## #????????????? | | ## # @ #?????????????????? | | # #### ###?????????????????? | | # ####??# # # ###???????????????????? | | # #?????########## #?????????????????????? | | ##??????????????# #?????????????????????? | | #???????????????# #?????????????????????? | | # ##???????????????# #?????????????????????? | | ######????????????????### #?????????????????????? | | ????????????????????????####?????????????????????? | | ?????????????????????????????????????????????????? | | ?????????????????????????????????????????????????? | | ?????????????????????????????????????????????????? | | ?????????????????????????????????????????????????? | | ?????????????????????????????????????????????????? | | ?????????????????????????????????????????????????? | | ?????????????????????????????????????????????????? | | ?????????????????????????????????????????????????? | | ?????????????????????????????????????????????????? | | ?????????????????????????????????????????????????? | | ?????????????????????????????????????????????????? | | ?????????????????????????????????????????????????? | | ?????????????????????????????????????????????????? | | ?????????????????????????????????????????????????? | | | | | +----------------------------------------------------+ Best States ------------- Heat Dissipation 25 Energy Generation 10 Energy Capacity 250 Matter Stores 300 Matter Capacity 300 Sight Range 16 Terrain Scan Density 10 Evasion (%) 50 Targeting Accuracy 5 Item Schematics ----------------- None Robot Schematics ------------------ None Fabricated ------------ Nothing Repaired ---------- Nothing Alien Tech Used ----------------- None Achievements -------------- None Challenges ------------ None Game ------ Seed SniperBackupChargecaster Manual? 0 Play Time 00:11:49 Cumulative 400.1 hours Start 2025.07.24 @ 15:16:39 End 2025.07.24 @ 15:27:41 Sessions 1 Manual Loads 0 Difficulty Rogue Special Mode None Game No. 500 Rogue 500 Adventurer 0 Explorer 0 Win Type - Total 31 Types 15/1/9/1/1/1/0/1/1/1 Lore% 87 Gallery% 80 Achievement% 77 Wizard Run 0 Options --------- Layout 0 ASCII 0 Keyboard 0 Movement Numpad Keybinds 0 Fullscreen 1 Font 18/SmallcapsGlow Map View 76x50 Zoom Use 0% Tactical HUD 1 Map Filters NONE Filters NONE Steam 1 RUN: a5b424a7-ace4-4549-90c0-22be0ec273cb